[Event "Hungarian Rapid-ch 2022"]
[Site "Ajka"]
[Date "2022.07.15"]
[Round "4.10"]
[White "Dobos, Jozsef"]
[Black "Horvath, Adam"]
[Result "0-1"]
[ECO "A00"]
[WhiteElo "2244"]
[BlackElo "2520"]
[Annotator "ChessBase"]
[PlyCount "102"]
[EventDate "2022.07.15"]
[EventType "swiss"]
[EventCountry "HUN"]
[SourceTitle "playchess.com"]
[Source "ChessBase"]
[SourceQuality "1"]
[TimeControl "900+10"]

1. a3 {[%emt 0:00:13]} a5 {[%emt 0:00:16]} 2. e4 {[%emt 0:00:36]} e6 {[%emt 0:01:30]} 3. d4 {[%emt 0:00:26]} d5 {[%emt 0:00:03]} 4. Nc3 {[%emt 0:00:17]} dxe4 {[%emt 0:00:45]} 5. Nxe4 {[%emt 0:00:04]} Nd7 {[%emt 0:00:09]} 6. Nf3 {[%emt 0:00:52]} Ngf6 {[%emt 0:00:18]} 7. Nxf6+ {[%emt 0:02:44]} Nxf6 {[%emt 0:00:01]} 8. Bb5+ {[%emt 0:00:11]} c6 {[%emt 0:00:15]} 9. Bd3 {[%emt 0:00:02]} Be7 {[%emt 0:00:13]} 10. O-O {[%emt 0:00:12]} b6 {[%emt 0:00:24]} 11. Qe2 {[%emt 0:00:31]} a4 {[%emt 0:00:18]} 12. Re1 {[%emt 0:01:22]} Bb7 {[%emt 0:00:19]} 13. Ne5 {[%emt 0:00:33]} O-O {[%emt 0:00:22]} 14. c3 c5 {[%emt 0:00:26]} 15. dxc5 {[%emt 0:00:48]} bxc5 {[%emt 0:01:13]} 16. Bc4 {[%emt 0:00:11]} Nd5 {[%emt 0:01:35]} 17. Bd2 {[%emt 0:00:36]} Qc7 {[%emt 0:00:46]} 18. Rad1 {[%emt 0:00:27]} Rad8 {[%emt 0:00:02]} 19. Bc1 {[%emt 0:00:04]} Ba8 {[%emt 0:03:12]} 20. Bb5 {[%emt 0:02:05]} Nb6 {[%emt 0:03:20]} 21. Bf4 {[%emt 0:00:24]} Bd6 {[%emt 0:00:58]} 22. Bg3 {[%emt 0:00:09]} Bd5 {[%emt 0:00:58]} 23. Nc4 {[%emt 0:00:44]} Bxg3 {[%emt 0:00:22]} 24. hxg3 {[%emt 0:00:02]} Rb8 {[%emt 0:00:34]} 25. Nxb6 {[%emt 0:01:06]} Rxb6 {[%emt 0:00:10]} 26. Bxa4 {[%emt 0:00:19]} Qb7 {[%emt 0:00:18]} 27. f3 {[%emt 0:00:38]} Rxb2 {[%emt 0:00:03]} 28. Rd2 {[%emt 0:00:01]} Rxd2 {[%emt 0:00:06]} 29. Qxd2 {[%emt 0:00:01]} Qa7 {[%emt 0:00:14]} 30. Bb5 {[%emt 0:03:35]} Qxa3 {[%emt 0:00:36]} 31. c4 {[%emt 0:00:05]} Ba8 {[%emt 0:00:02]} 32. Qd6 {[%emt 0:00:08]} g6 {[%emt 0:00:17]} 33. Re5 {[%emt 0:00:14]} Qc1+ {[%emt 0:00:10]} 34. Kh2 {[%emt 0:00:03]} Qb2 {[%emt 0:00:07]} 35. Kg1 {[%emt 0:00:13]} Qc1+ {[%emt 0:00:19]} 36. Kh2 {[%emt 0:00:01]} Qc2 {[%emt 0:00:13]} 37. Kg1 {[%emt 0:00:06]} h5 {[%emt 0:00:12]} 38. Rxc5 {[%emt 0:00:13]} Qc1+ {[%emt 0:00:05]} 39. Kh2 {[%emt 0:00:04]} Qb2 {[%emt 0:00:05]} 40. Bc6 {[%emt 0:00:12]} Qf2 {[%emt 0:00:12]} 41. Qe7 {[%emt 0:00:59]} Kg7 {[%emt 0:00:15]} 42. Bxa8 {[%emt 0:00:04]} Rxa8 {[%emt 0:00:00]} 43. Rc7 {[%emt 0:00:01]} Rf8 {[%emt 0:00:03]} 44. Qxe6 {[%emt 0:00:05]} h4 {[%emt 0:00:01]} 45. Qe5+ {[%emt 0:00:06]} Kg8 {[%emt 0:00:02]} 46. Qf4 {[%emt 0:00:26]} hxg3+ {[%emt 0:00:04]} 47. Qxg3 {[%emt 0:00:02]} Qb2 {[%emt 0:00:06]} 48. c5 {[%emt 0:00:15]} Kg7 {[%emt 0:00:05]} 49. Qf4 {[%emt 0:00:20]} Qc3 {[%emt 0:00:20]} 50. c6 {[%emt 0:00:17]} Rh8+ {[%emt 0:00:06]} 51. Kg3 {[%emt 0:00:01]} Qe1+ {[%emt 0:00:01]} 0-1

[Event "Hungarian Rapid-ch 2022"]
[Site "Ajka"]
[Date "2022.07.15"]
[Round "4.11"]
[White "Varga, Zoltan"]
[Black "Szamoskozi, Gabor"]
[Result "1-0"]
[ECO "A35"]
[WhiteElo "2401"]
[BlackElo "2243"]
[Annotator "ChessBase"]
[PlyCount "75"]
[EventDate "2022.07.15"]
[EventType "swiss"]
[EventCountry "HUN"]
[SourceTitle "playchess.com"]
[Source "ChessBase"]
[SourceQuality "1"]
[TimeControl "900+10"]

1. c4 {[%emt 0:00:12]} Nf6 {[%emt 0:00:23]} 2. Nc3 {[%emt 0:00:05]} c5 {[%emt 0:00:42]} 3. Nf3 {[%emt 0:00:02]} Nc6 {[%emt 0:00:02]} 4. d4 {[%emt 0:00:01]} cxd4 {[%emt 0:00:04]} 5. Nxd4 {[%emt 0:00:01]} e5 {[%emt 0:00:39]} 6. Ndb5 {[%emt 0:00:09]} d6 {[%emt 0:00:47]} 7. Bg5 {[%emt 0:00:03]} a6 {[%emt 0:00:09]} 8. Bxf6 {[%emt 0:00:07]} gxf6 {[%emt 0:00:02]} 9. Na3 {[%emt 0:00:01]} f5 {[%emt 0:00:21]} 10. e3 {[%emt 0:00:01]} Be6 {[%emt 0:01:15]} 11. Qd2 {[%emt 0:00:09]} Be7 {[%emt 0:00:34]} 12. Be2 {[%emt 0:00:21]} O-O {[%emt 0:00:47]} 13. O-O {[%emt 0:00:02]} Rc8 {[%emt 0:00:19]} 14. Rac1 {[%emt 0:00:35]} Re8 {[%emt 0:00:30]} 15. Nab1 {[%emt 0:00:44]} Nb8 {[%emt 0:02:39]} 16. Nd5 {[%emt 0:00:25]} Bxd5 {[%emt 0:00:29]} 17. Qxd5 {[%emt 0:00:02]} Qb6 {[%emt 0:00:24]} 18. Bh5 {[%emt 0:00:51]} Rf8 {[%emt 0:00:05]} 19. b3 {[%emt 0:00:01]} Qc6 {[%emt 0:02:28]} 20. Nc3 {[%emt 0:00:04]} Qxd5 {[%emt 0:00:43]} 21. Nxd5 {[%emt 0:00:02]} Bd8 {[%emt 0:00:07]} 22. f4 {[%emt 0:00:51]} e4 {[%emt 0:00:18]} 23. Rfd1 {[%emt 0:00:06]} Nc6 {[%emt 0:00:22]} 24. Kf2 {[%emt 0:00:25]} Kg7 {[%emt 0:00:07]} 25. Ke2 {[%emt 0:01:30]} Kh6 {[%emt 0:01:17]} 26. g4 {[%emt 0:00:01]} Bh4 {[%emt 0:00:56]} 27. h3 {[%emt 0:00:40]} Rcd8 {[%emt 0:00:05]} 28. Rd2 {[%emt 0:00:01]} Rd7 {[%emt 0:00:37]} 29. Rcd1 {[%emt 0:00:06]} Bd8 {[%emt 0:00:02]} 30. a3 {[%emt 0:00:57]} Na5 {[%emt 0:00:08]} 31. Rb1 {[%emt 0:00:01]} b5 {[%emt 0:01:15]} 32. cxb5 {[%emt 0:00:46]} axb5 {[%emt 0:00:01]} 33. Nc3 {[%emt 0:00:00]} Be7 {[%emt 0:00:18]} 34. Nxb5 {[%emt 0:00:28]} d5 {[%emt 0:00:28]} 35. Nd4 {[%emt 0:00:14]} fxg4 36. hxg4 {[%emt 0:00:00]} f5 {[%emt 0:00:13]} 37. Rh1 {[%emt 0:01:16]} Kg7 {[%emt 0:00:06]} 38. Ne6+ {[%emt 0:00:07]} 1-0

[Event "Hungarian Rapid-ch 2022"]
[Site "Ajka"]
[Date "2022.07.15"]
[Round "4.12"]
[White "Margl, Roland"]
[Black "Mihok, Oliver"]
[Result "1/2-1/2"]
[ECO "E62"]
[WhiteElo "2312"]
[BlackElo "2549"]
[Annotator "ChessBase"]
[PlyCount "94"]
[EventDate "2022.07.15"]
[EventType "swiss"]
[EventCountry "HUN"]
[SourceTitle "playchess.com"]
[Source "ChessBase"]
[SourceQuality "1"]
[TimeControl "900+10"]

1. Nf3 {[%emt 0:00:12]} Nf6 {[%emt 0:00:11]} 2. c4 {[%emt 0:00:01]} g6 {[%emt 0:00:01]} 3. d4 {[%emt 0:00:01]} Bg7 {[%emt 0:00:01]} 4. g3 {[%emt 0:00:01]} O-O {[%emt 0:00:03]} 5. Bg2 {[%emt 0:00:01]} d6 {[%emt 0:00:02]} 6. O-O {[%emt 0:00:02]} Nc6 {[%emt 0:00:01]} 7. Nc3 {[%emt 0:00:02]} e5 {[%emt 0:00:01]} 8. dxe5 {[%emt 0:00:01]} dxe5 {[%emt 0:00:01]} 9. Bg5 {[%emt 0:00:11]} h6 {[%emt 0:00:01]} 10. Qxd8 {[%emt 0:01:25]} Rxd8 {[%emt 0:00:02]} 11. Bxf6 {[%emt 0:00:01]} Bxf6 {[%emt 0:00:01]} 12. Nd5 {[%emt 0:00:01]} Kg7 {[%emt 0:00:02]} 13. Nxc7 {[%emt 0:00:05]} Rb8 {[%emt 0:00:01]} 14. e4 {[%emt 0:00:14]} Be7 {[%emt 0:00:09]} 15. Nd5 {[%emt 0:00:25]} Bc5 {[%emt 0:00:03]} 16. Rac1 {[%emt 0:00:06]} a5 {[%emt 0:00:39]} 17. h3 {[%emt 0:01:44]} Be6 {[%emt 0:00:24]} 18. Rfd1 {[%emt 0:00:19]} a4 {[%emt 0:00:40]} 19. Bf1 {[%emt 0:01:33]} b6 {[%emt 0:00:22]} 20. Nc7 {[%emt 0:02:19]} Rbc8 {[%emt 0:01:04]} 21. Nxe6+ {[%emt 0:01:54]} fxe6 {[%emt 0:00:01]} 22. Rxd8 {[%emt 0:00:21]} Rxd8 {[%emt 0:00:02]} 23. Kg2 {[%emt 0:00:17]} Kf6 {[%emt 0:02:15]} 24. Be2 {[%emt 0:00:48]} a3 {[%emt 0:00:17]} 25. bxa3 {[%emt 0:00:19]} Ra8 {[%emt 0:00:25]} 26. Rc3 {[%emt 0:03:20]} Bxa3 {[%emt 0:00:05]} 27. Bd1 {[%emt 0:00:14]} Bb4 {[%emt 0:00:41]} 28. Rc2 {[%emt 0:00:01]} Ra3 {[%emt 0:00:34]} 29. Rb2 {[%emt 0:00:10]} Bc5 {[%emt 0:00:14]} 30. Bb3 {[%emt 0:00:09]} g5 {[%emt 0:02:35]} 31. g4 {[%emt 0:00:08]} Ra7 {[%emt 0:01:20]} 32. Rd2 {[%emt 0:00:12]} Bd4 {[%emt 0:01:07]} 33. Rd1 {[%emt 0:00:31]} Bc5 {[%emt 0:00:23]} 34. Rd2 {[%emt 0:00:01]} Nd4 {[%emt 0:00:19]} 35. Nxd4 {[%emt 0:01:14]} exd4 {[%emt 0:00:02]} 36. Rd3 {[%emt 0:00:06]} Ke5 {[%emt 0:00:14]} 37. f3 {[%emt 0:00:12]} h5 {[%emt 0:00:55]} 38. gxh5 {[%emt 0:00:33]} Kf4 {[%emt 0:00:23]} 39. Kf2 {[%emt 0:00:18]} Rh7 {[%emt 0:00:06]} 40. Kg2 {[%emt 0:00:02]} Rxh5 {[%emt 0:00:08]} 41. Ba4 {[%emt 0:00:06]} Rh7 {[%emt 0:00:23]} 42. Bb5 {[%emt 0:00:19]} Ra7 {[%emt 0:01:08]} 43. a4 {[%emt 0:00:01]} e5 {[%emt 0:00:52]} 44. Rb3 {[%emt 0:00:17]} Ra8 {[%emt 0:00:09]} 45. Bc6 {[%emt 0:00:02]} Ra7 {[%emt 0:00:28]} 46. Bb5 {[%emt 0:00:02]} Ra8 {[%emt 0:00:33]} 47. Bc6 {[%emt 0:00:01]} Ra7 {[%emt 0:00:07]} 1/2-1/2

[Event "Hungarian Rapid-ch 2022"]
[Site "Ajka"]
[Date "2022.07.15"]
[Round "4.13"]
[White "Csiszar, Csaba"]
[Black "Kokeny, Gabor"]
[Result "1/2-1/2"]
[ECO "D02"]
[WhiteElo "2389"]
[BlackElo "2204"]
[Annotator "ChessBase"]
[PlyCount "139"]
[EventDate "2022.07.15"]
[EventType "swiss"]
[EventCountry "HUN"]
[SourceTitle "playchess.com"]
[Source "ChessBase"]
[SourceQuality "1"]
[TimeControl "900+10"]

1. d4 {[%emt 0:00:12]} d5 {[%emt 0:00:33]} 2. Nf3 {[%emt 0:00:02]} Nf6 {[%emt 0:00:06]} 3. Bf4 {[%emt 0:00:01]} e6 {[%emt 0:00:40]} 4. Nbd2 {[%emt 0:00:11]} Nbd7 {[%emt 0:00:13]} 5. e3 {[%emt 0:00:05]} Be7 {[%emt 0:00:25]} 6. Bd3 {[%emt 0:00:02]} c5 {[%emt 0:00:32]} 7. c3 {[%emt 0:00:02]} b6 {[%emt 0:00:06]} 8. Ne5 {[%emt 0:00:06]} Nxe5 {[%emt 0:00:14]} 9. dxe5 {[%emt 0:00:06]} Nd7 {[%emt 0:00:03]} 10. h4 {[%emt 0:04:32]} Qc7 {[%emt 0:00:53]} 11. Nf3 {[%emt 0:00:04]} Bb7 {[%emt 0:00:44]} 12. a4 {[%emt 0:00:28]} a6 {[%emt 0:02:25]} 13. Qe2 {[%emt 0:00:12]} Bc6 {[%emt 0:00:50]} 14. h5 {[%emt 0:00:38]} c4 {[%emt 0:00:44]} 15. Bc2 {[%emt 0:00:01]} Nc5 {[%emt 0:00:01]} 16. Nd4 {[%emt 0:00:15]} Bd7 {[%emt 0:00:04]} 17. Qg4 {[%emt 0:00:12]} O-O-O {[%emt 0:02:16]} 18. Qe2 {[%emt 0:02:38]} Kb7 {[%emt 0:00:25]} 19. O-O {[%emt 0:00:12]} h6 {[%emt 0:01:02]} 20. Rfb1 {[%emt 0:00:04]} g6 {[%emt 0:02:32]} 21. hxg6 {[%emt 0:00:18]} fxg6 {[%emt 0:00:02]} 22. Bxg6 {[%emt 0:00:52]} Rdg8 {[%emt 0:00:29]} 23. Qh5 {[%emt 0:00:38]} Bg5 {[%emt 0:02:29]} 24. Bh2 {[%emt 0:00:38]} Qc8 {[%emt 0:00:02]} 25. b3 {[%emt 0:00:21]} Rg7 {[%emt 0:00:42]} 26. bxc4 {[%emt 0:00:11]} dxc4 27. Rb4 {[%emt 0:00:51]} Be7 {[%emt 0:00:11]} 28. Rxc4 {[%emt 0:00:36]} Rhg8 {[%emt 0:00:09]} 29. Qf3+ {[%emt 0:01:40]} Kb8 {[%emt 0:00:30]} 30. Be4 {[%emt 0:00:10]} Rxg2+ {[%emt 0:00:09]} 31. Qxg2 {[%emt 0:00:08]} Rxg2+ {[%emt 0:00:01]} 32. Bxg2 {[%emt 0:00:01]} a5 {[%emt 0:00:12]} 33. Rb1 {[%emt 0:00:18]} Ka7 {[%emt 0:00:02]} 34. Nb5+ {[%emt 0:00:05]} Bxb5 {[%emt 0:00:02]} 35. Rxb5 {[%emt 0:00:01]} Qe8 {[%emt 0:00:44]} 36. Rb1 {[%emt 0:00:07]} Qg6 {[%emt 0:00:12]} 37. Rd1 {[%emt 0:00:14]} Qc2 {[%emt 0:00:08]} 38. Rcd4 {[%emt 0:00:04]} Bh4 {[%emt 0:00:05]} 39. R4d2 {[%emt 0:00:28]} Qxa4 {[%emt 0:00:17]} 40. Bf4 {[%emt 0:00:34]} Bg5 {[%emt 0:00:07]} 41. Bg3 {[%emt 0:00:08]} Qb3 {[%emt 0:00:06]} 42. Rd8 {[%emt 0:00:07]} Bxd8 {[%emt 0:00:06]} 43. Rxd8 {[%emt 0:00:01]} Ka6 {[%emt 0:00:13]} 44. Bf1+ {[%emt 0:00:02]} b5 {[%emt 0:00:06]} 45. Rd6+ {[%emt 0:00:07]} Kb7 {[%emt 0:00:07]} 46. Bg2+ {[%emt 0:00:01]} Ka7 {[%emt 0:00:01]} 47. Bh4 {[%emt 0:00:20]} a4 {[%emt 0:00:20]} 48. Bd8 {[%emt 0:00:01]} Nb7 {[%emt 0:00:25]} 49. Rd7 a3 {[%emt 0:00:14]} 50. Rxb7+ {[%emt 0:00:55]} Ka6 {[%emt 0:00:01]} 51. Rb6+ {[%emt 0:00:07]} Ka7 {[%emt 0:00:03]} 52. Rd6 {[%emt 0:00:46]} Qb1+ {[%emt 0:00:24]} 53. Kh2 {[%emt 0:00:06]} a2 {[%emt 0:00:11]} 54. Bb6+ {[%emt 0:00:46]} Ka6 {[%emt 0:00:01]} 55. Bc7+ {[%emt 0:01:10]} Ka7 {[%emt 0:00:01]} 56. Bb6+ {[%emt 0:00:11]} Ka6 {[%emt 0:00:02]} 57. Bd8+ {[%emt 0:01:02]} Ka7 {[%emt 0:00:03]} 58. Bb6+ {[%emt 0:00:04]} Ka6 {[%emt 0:00:02]} 59. Bc7+ {[%emt 0:00:27]} Ka7 {[%emt 0:00:01]} 60. Bb6+ {[%emt 0:00:02]} Ka6 {[%emt 0:00:01]} 61. Bd8+ {[%emt 0:00:01]} Ka7 {[%emt 0:00:02]} 62. Bb6+ {[%emt 0:00:02]} Ka6 {[%emt 0:00:01]} 63. Bd8+ {[%emt 0:00:32]} Ka7 {[%emt 0:00:01]} 64. Bb6+ {[%emt 0:00:00]} Ka6 {[%emt 0:00:01]} 65. Bc7+ {[%emt 0:00:03]} Ka7 {[%emt 0:00:01]} 66. Bb6+ {[%emt 0:00:01]} Ka6 {[%emt 0:00:02]} 67. Bc7+ Ka7 68. Rd8 Ka6 69. Rd6+ Ka7 70. Rd3 1/2-1/2

[Event "Hungarian Rapid-ch 2022"]
[Site "Ajka"]
[Date "2022.07.15"]
[Round "4.14"]
[White "Kaczur, Florian"]
[Black "Horvath, Kristof"]
[Result "1-0"]
[ECO "D40"]
[WhiteElo "2482"]
[BlackElo "2053"]
[Annotator "ChessBase"]
[PlyCount "53"]
[EventDate "2022.07.15"]
[EventType "swiss"]
[EventCountry "HUN"]
[SourceTitle "playchess.com"]
[Source "ChessBase"]
[SourceQuality "1"]
[TimeControl "900+10"]

1. d4 {[%emt 0:00:12]} d5 {[%emt 0:00:12]} 2. Nf3 {[%emt 0:00:03]} Nf6 {[%emt 0:00:05]} 3. c4 {[%emt 0:00:03]} e6 {[%emt 0:00:04]} 4. Nc3 {[%emt 0:00:04]} c5 {[%emt 0:00:27]} 5. e3 {[%emt 0:00:12]} Be7 {[%emt 0:00:07]} 6. a3 {[%emt 0:00:10]} O-O {[%emt 0:01:02]} 7. dxc5 {[%emt 0:00:32]} Bxc5 {[%emt 0:00:02]} 8. Qc2 {[%emt 0:00:12]} dxc4 {[%emt 0:00:40]} 9. Bxc4 {[%emt 0:00:02]} a6 {[%emt 0:00:03]} 10. Bd3 {[%emt 0:00:12]} Be7 {[%emt 0:00:38]} 11. e4 {[%emt 0:00:08]} h6 {[%emt 0:00:34]} 12. e5 {[%emt 0:00:12]} Nd5 {[%emt 0:00:07]} 13. O-O {[%emt 0:00:32]} Nc6 {[%emt 0:00:13]} 14. Qe2 {[%emt 0:00:48]} Qc7 {[%emt 0:02:39]} 15. Qe4 {[%emt 0:01:22]} f5 {[%emt 0:00:02]} 16. Nxd5 {[%emt 0:00:16]} exd5 {[%emt 0:00:01]} 17. Qxd5+ {[%emt 0:00:08]} Kh8 {[%emt 0:00:16]} 18. Bd2 {[%emt 0:01:17]} Rd8 {[%emt 0:00:14]} 19. Qc4 {[%emt 0:00:03]} Qd7 {[%emt 0:01:34]} 20. Bb1 {[%emt 0:00:19]} b5 {[%emt 0:01:50]} 21. Qc2 {[%emt 0:00:04]} Nd4 {[%emt 0:01:53]} 22. Nxd4 {[%emt 0:00:02]} Qxd4 {[%emt 0:00:00]} 23. Ba5 {[%emt 0:00:46]} Re8 {[%emt 0:02:59]} 24. Rd1 {[%emt 0:01:26]} Qxe5 {[%emt 0:00:11]} 25. Qc6 {[%emt 0:01:07]} Be6 {[%emt 0:00:02]} 26. Bc3 {[%emt 0:00:46]} Rad8 {[%emt 0:03:06]} 27. Qxe8+ {[%emt 0:00:07]} 1-0

[Event "Hungarian Rapid-ch 2022"]
[Site "Ajka"]
[Date "2022.07.15"]
[Round "4.15"]
[White "Mihok-Juhasz, Barbara"]
[Black "Czebe, Attila"]
[Result "0-1"]
[ECO "B08"]
[WhiteElo "2221"]
[BlackElo "2385"]
[Annotator "ChessBase"]
[PlyCount "116"]
[EventDate "2022.07.15"]
[EventType "swiss"]
[EventCountry "HUN"]
[SourceTitle "playchess.com"]
[Source "ChessBase"]
[SourceQuality "1"]
[TimeControl "900+10"]

1. e4 {[%emt 0:00:13]} d6 {[%emt 0:00:19]} 2. d4 {[%emt 0:00:02]} g6 {[%emt 0:00:01]} 3. Nf3 {[%emt 0:00:03]} Nf6 {[%emt 0:00:03]} 4. Nc3 {[%emt 0:00:08]} Bg7 {[%emt 0:00:03]} 5. Be2 {[%emt 0:00:11]} O-O {[%emt 0:00:05]} 6. Bg5 {[%emt 0:00:48]} Bg4 {[%emt 0:00:36]} 7. Qd2 {[%emt 0:00:28]} c6 {[%emt 0:00:53]} 8. O-O {[%emt 0:02:09]} d5 {[%emt 0:00:30]} 9. exd5 {[%emt 0:02:59]} cxd5 {[%emt 0:00:46]} 10. Ne5 {[%emt 0:01:00]} Bxe2 {[%emt 0:01:34]} 11. Qxe2 {[%emt 0:00:02]} Nc6 {[%emt 0:00:16]} 12. Rad1 {[%emt 0:01:14]} Re8 {[%emt 0:01:49]} 13. Nxc6 {[%emt 0:02:32]} bxc6 {[%emt 0:00:02]} 14. Qa6 {[%emt 0:00:03]} Qb6 {[%emt 0:00:10]} 15. Qa3 {[%emt 0:00:03]} a5 {[%emt 0:00:45]} 16. Bf4 {[%emt 0:01:19]} Qb4 {[%emt 0:00:37]} 17. Rfe1 {[%emt 0:00:23]} Nd7 {[%emt 0:01:34]} 18. Nb1 {[%emt 0:01:57]} e5 {[%emt 0:01:09]} 19. Bxe5 {[%emt 0:00:14]} Nxe5 {[%emt 0:00:12]} 20. dxe5 {[%emt 0:00:02]} Bxe5 {[%emt 0:00:15]} 21. c3 {[%emt 0:00:24]} Qxa3 {[%emt 0:03:37]} 22. Nxa3 {[%emt 0:00:03]} Rab8 {[%emt 0:00:01]} 23. Nb1 {[%emt 0:00:38]} Re6 {[%emt 0:00:55]} 24. b3 {[%emt 0:00:09]} h5 {[%emt 0:00:02]} 25. g3 {[%emt 0:00:07]} Bf6 {[%emt 0:01:02]} 26. Rxe6 fxe6 {[%emt 0:00:02]} 27. f4 {[%emt 0:00:37]} Kf7 {[%emt 0:00:02]} 28. Kg2 {[%emt 0:00:03]} c5 {[%emt 0:00:09]} 29. Kf3 {[%emt 0:00:39]} a4 {[%emt 0:00:05]} 30. bxa4 {[%emt 0:00:16]} Ra8 {[%emt 0:00:48]} 31. c4 {[%emt 0:00:35]} d4 {[%emt 0:00:02]} 32. Rd3 {[%emt 0:00:42]} Rxa4 {[%emt 0:00:02]} 33. Na3 {[%emt 0:00:01]} Bd8 {[%emt 0:00:54]} 34. Rb3 {[%emt 0:00:13]} Ba5 {[%emt 0:00:28]} 35. Rb7+ {[%emt 0:00:16]} Kf8 {[%emt 0:00:02]} 36. Nb5 {[%emt 0:00:03]} Rxc4 {[%emt 0:00:14]} 37. Rb8+ {[%emt 0:00:19]} Ke7 {[%emt 0:00:12]} 38. Rb7+ {[%emt 0:00:02]} Kd8 {[%emt 0:00:22]} 39. Ra7 {[%emt 0:00:21]} Bb6 {[%emt 0:00:18]} 40. Ra6 {[%emt 0:00:12]} Bc7 {[%emt 0:00:08]} 41. Ra8+ {[%emt 0:00:02]} Kd7 {[%emt 0:00:01]} 42. Ra7 {[%emt 0:00:01]} Kc6 {[%emt 0:00:02]} 43. Nxc7 {[%emt 0:00:02]} Rc3+ {[%emt 0:00:13]} 44. Ke2 {[%emt 0:00:04]} Kb6 {[%emt 0:00:07]} 45. Ra6+ {[%emt 0:00:19]} Kxc7 {[%emt 0:00:02]} 46. Rxe6 {[%emt 0:00:01]} c4 {[%emt 0:00:08]} 47. Rxg6 {[%emt 0:00:18]} Rc2+ {[%emt 0:00:28]} 48. Kd1 {[%emt 0:00:01]} Rxh2 {[%emt 0:00:12]} 49. Ra6 {[%emt 0:00:42]} c3 {[%emt 0:00:14]} 50. Ra4 {[%emt 0:00:04]} Rd2+ {[%emt 0:00:03]} 51. Kc1 {[%emt 0:00:04]} Kd6 {[%emt 0:00:01]} 52. f5 {[%emt 0:00:17]} Ke5 {[%emt 0:00:03]} 53. Ra5+ {[%emt 0:00:01]} Ke4 {[%emt 0:00:03]} 54. f6 {[%emt 0:00:02]} Rf2 {[%emt 0:00:01]} 55. Rxh5 {[%emt 0:00:06]} d3 {[%emt 0:00:19]} 56. Rh1 {[%emt 0:00:10]} Rxa2 {[%emt 0:00:35]} 57. Kb1 {[%emt 0:00:08]} Rb2+ {[%emt 0:00:02]} 58. Ka1 {[%emt 0:00:01]} Rf2 {[%emt 0:00:02]} 0-1

[Event "Hungarian Rapid-ch 2022"]
[Site "Ajka"]
[Date "2022.07.15"]
[Round "4.16"]
[White "Jonas, Zsolt"]
[Black "Meszaros, Tamas"]
[Result "0-1"]
[ECO "C55"]
[WhiteElo "2031"]
[BlackElo "2368"]
[Annotator "ChessBase"]
[PlyCount "44"]
[EventDate "2022.07.15"]
[EventType "swiss"]
[EventCountry "HUN"]
[SourceTitle "playchess.com"]
[Source "ChessBase"]
[SourceQuality "1"]
[TimeControl "900+10"]

1. e4 {[%emt 0:00:13]} e5 {[%emt 0:00:25]} 2. Nf3 {[%emt 0:00:02]} Nc6 {[%emt 0:00:02]} 3. d4 {[%emt 0:00:02]} exd4 {[%emt 0:00:02]} 4. Bc4 {[%emt 0:00:02]} Nf6 {[%emt 0:00:12]} 5. O-O {[%emt 0:00:02]} Bc5 {[%emt 0:00:57]} 6. e5 {[%emt 0:00:44]} d5 {[%emt 0:00:01]} 7. Bb5 {[%emt 0:00:01]} Ne4 {[%emt 0:00:02]} 8. Nxd4 {[%emt 0:00:03]} Bd7 {[%emt 0:02:23]} 9. Bxc6 {[%emt 0:00:20]} bxc6 {[%emt 0:00:01]} 10. c3 {[%emt 0:01:41]} Bb6 {[%emt 0:04:00]} 11. Nd2 {[%emt 0:00:20]} Nxd2 {[%emt 0:01:34]} 12. Bxd2 {[%emt 0:00:28]} c5 {[%emt 0:00:07]} 13. Nc2 {[%emt 0:00:24]} O-O {[%emt 0:01:01]} 14. Qf3 {[%emt 0:01:12]} Be6 {[%emt 0:02:14]} 15. Qg3 {[%emt 0:00:05]} f5 {[%emt 0:00:50]} 16. Be3 {[%emt 0:04:14]} Qd7 {[%emt 0:00:27]} 17. Rfd1 {[%emt 0:00:18]} Qa4 {[%emt 0:01:11]} 18. b3 {[%emt 0:00:06]} Qe4 {[%emt 0:00:23]} 19. Bh6 {[%emt 0:00:21]} Rf7 {[%emt 0:00:11]} 20. Na3 {[%emt 0:02:11]} f4 {[%emt 0:00:05]} 21. Qg5 {[%emt 0:00:04]} Kh8 {[%emt 0:00:10]} 22. Re1 {[%emt 0:00:16]} gxh6 {[%emt 0:00:03]} 0-1

[Event "Hungarian Rapid-ch 2022"]
[Site "Ajka"]
[Date "2022.07.15"]
[Round "4.17"]
[White "Nemeth, Zalan"]
[Black "Jakab, Attila"]
[Result "1-0"]
[ECO "A14"]
[WhiteElo "2194"]
[BlackElo "2311"]
[Annotator "ChessBase"]
[PlyCount "47"]
[EventDate "2022.07.15"]
[EventType "swiss"]
[EventCountry "HUN"]
[SourceTitle "playchess.com"]
[Source "ChessBase"]
[SourceQuality "1"]
[TimeControl "900+10"]

1. c4 {[%emt 0:00:12]} e6 {[%emt 0:00:46]} 2. g3 {[%emt 0:00:03]} Nf6 {[%emt 0:00:02]} 3. Bg2 {[%emt 0:00:01]} d5 {[%emt 0:00:03]} 4. Nf3 {[%emt 0:00:01]} Be7 {[%emt 0:00:02]} 5. O-O {[%emt 0:00:02]} O-O {[%emt 0:00:04]} 6. b3 {[%emt 0:00:01]} b6 {[%emt 0:00:05]} 7. cxd5 {[%emt 0:00:02]} Nxd5 {[%emt 0:00:09]} 8. d4 {[%emt 0:00:05]} Bb7 {[%emt 0:00:05]} 9. Bb2 {[%emt 0:00:14]} Nd7 {[%emt 0:00:06]} 10. Nbd2 {[%emt 0:00:03]} c5 {[%emt 0:00:03]} 11. e4 Nb4 {[%emt 0:00:37]} 12. Qb1 {[%emt 0:00:41]} cxd4 {[%emt 0:01:09]} 13. Nxd4 {[%emt 0:01:53]} Nc5 {[%emt 0:00:29]} 14. Rd1 {[%emt 0:00:47]} Ncd3 {[%emt 0:00:40]} 15. Nc4 {[%emt 0:01:14]} Nxb2 {[%emt 0:00:14]} 16. Qxb2 {[%emt 0:00:03]} Qb8 {[%emt 0:00:31]} 17. a3 {[%emt 0:00:16]} Nc6 {[%emt 0:00:33]} 18. Nxc6 {[%emt 0:02:47]} Bxc6 {[%emt 0:00:02]} 19. Rac1 {[%emt 0:00:34]} Qb7 {[%emt 0:00:13]} 20. Ne5 {[%emt 0:01:09]} Bf6 {[%emt 0:00:03]} 21. Qc2 {[%emt 0:00:19]} Bxe5 {[%emt 0:00:49]} 22. Qxc6 {[%emt 0:00:03]} Qa6 {[%emt 0:00:16]} 23. a4 {[%emt 0:00:34]} Rad8 {[%emt 0:00:20]} 24. Qb5 {[%emt 0:00:23]} 1-0